bitfinex/quotes_ETHUSD_20240825
["timestamp","ask_amount","ask_price","bid_price","bid_amount"]
[1724558858418,3.62144,2761.4,2760.9,2.3952289]
[1724558858651,3.62152,2761.3,2760.9,2.3952289]
[1724558859015,2.4003,2761.7,2760.9,2.3952289]
[1724558859016,3.62169,2761.2,2760.9,2.3952289]
[1724558861015,3.62169,2761.2,2760.9,0.1303289]
[1724558861324,3.62177,2761.1,2760.9,0.1303289]
[1724558864568,3.62169,2761.2,2760.9,0.1303289]
[1724558864569,3.62187,2761.0,2760.9,0.1303289]
[1724558865104,3.62169,2761.2,2760.9,0.1303289]
[1724558866282,3.62174,2761.1,2760.9,0.1303289]
[1724558867791,3.62187,2761.0,2760.9,0.1303289]
[1724558871603,3.62169,2761.2,2760.9,0.1303289]
[1724558871604,3.62182,2761.1,2760.9,0.1303289]
[1724558873876,3.62187,2761.0,2760.9,0.1303289]
[1724558875123,4.89303624,2761.0,2760.9,0.1303289]
[1724558875603,3.62187,2761.0,2760.9,2.4209289]
[1724558875805,3.62187,2761.0,2760.9,0.1303289]
[1724558881986,7.24374,2761.0,2760.9,0.1303289]
[1724558885589,7.968114,2761.0,2760.9,0.1303289]
[1724558887943,18.10005961,2761.0,2760.9,0.1303289]
[1724558888285,16.964884,2761.0,2760.9,0.1303289]
[1724558888525,18.47713962,2761.0,2760.9,0.1303289]
[1724558890500,16.964884,2761.0,2760.9,0.1303289]
[1724558890697,18.0969217,2761.0,2760.9,0.1303289]
[1724558891097,16.964884,2761.0,2760.9,0.1303289]
[1724558891798,18.0970724,2761.0,2760.9,0.1303289]
[1724558892201,16.964884,2761.0,2760.9,0.1303289]
[1724558892626,18.0973357,2761.0,2760.9,0.1303289]
[1724558892817,16.964884,2761.0,2760.9,0.1303289]
[1724558893902,1.51225562,2761.1,2760.9,0.1303289]
[1724558893903,1.13235923,2761.1,2760.9,0.1303289]
[1724558894111,7.24374,2761.0,2760.9,0.1303289]
[1724558896233,4.75403923,2761.2,2760.9,0.1303289]
[1724558896453,1.13235923,2761.3,2761.0,0.25525289]
[1724558896658,1.13235923,2761.4,2761.0,0.25525289]
[1724558896858,1.8875431,2761.7,2761.4,2.4222]
[1724558896859,1.51225562,2761.7,2761.4,2.4222]
[1724558897015,1.51225562,2761.7,2761.4,6.04353]
[1724558897215,1.51225562,2761.7,2761.5,2.4222]
[1724558897412,1.13235923,2762.2,2761.7,2.4222]
[1724558897649,4.75253923,2762.3,2761.7,3.081528]
[1724558897851,3.62031,2762.2,2761.7,3.081528]
[1724558898017,1.13235923,2762.3,2761.7,2.4222]
[1724558898018,3.6207,2761.9,2761.7,2.4222]
[1724558898221,3.62066,2762.0,2761.7,2.4222]
[1724558898534,7.24072,2762.2,2761.7,2.4222]
[1724558898743,3.62044,2762.1,2761.7,2.4222]
[1724558898951,4.75269923,2762.2,2761.7,2.4222]
[1724558899147,3.62034,2762.2,2761.7,2.4222]
[1724558899363,4.75269923,2762.2,2761.7,2.4222]
[1724558899556,3.62058,2762.0,2761.7,2.4222]
[1724558899777,3.62077,2761.9,2761.7,2.4222]
[1724558900070,8.37305923,2762.2,2761.7,2.4222]
[1724558900363,3.62032,2762.2,2761.7,2.66442]
[1724558900686,3.62046,2762.1,2761.7,2.66442]
[1724558901821,3.62065,2762.0,2761.7,2.4222]
[1724558903072,3.62057,2762.0,2761.7,2.4222]
[1724558903233,1.13235923,2762.2,2761.3,2.2621]
[1724558903428,3.62098,2761.7,2761.3,2.2621]
[1724558903792,3.6211,2761.6,2761.3,2.2621]
[1724558903989,1.13235923,2762.0,2761.3,2.2621]
[1724558903990,3.62135,2761.4,2761.3,2.2621]
[1724558904128,3.62122,2761.5,2761.0,2.2621]
[1724558904576,7.24256,2761.5,2761.0,2.2621]
[1724558904733,7.24256,2761.5,2761.0,3.23534289]
[1724558905067,3.62122,2761.5,2761.0,3.23534289]
[1724558905382,3.62161,2761.2,2760.9,0.1303289]
[1724558907065,7.24333,2761.2,2760.9,0.1303289]
[1724558907267,3.62161,2761.2,2760.9,0.1303289]
[1724558907934,3.62187,2761.0,2760.9,0.1303289]
[1724558908358,4.346218,2761.0,2760.9,0.1303289]
[1724558909063,3.62187,2761.0,2760.9,0.1303289]
[1724558909961,7.24374,2761.0,2760.9,0.1303289]
[1724558918685,14.48986923,2761.0,2760.9,0.1303289]
[1724558918840,8.37609923,2761.0,2760.9,0.1303289]
[1724558919177,7.24374,2761.0,2760.9,0.1303289]
[1724558919377,8.23257548,2761.0,2760.9,0.1303289]
[1724558919674,9.36493471,2761.0,2760.9,0.1303289]
[1724558921701,9.36607455,2761.0,2760.9,0.1303289]
[1724558923048,9.36601924,2761.0,2760.9,0.1303289]
[1724558923953,9.7448311,2761.0,2760.9,0.1303289]
[1724558924349,13.3667011,2761.0,2760.9,0.1303289]
[1724558924544,9.7448311,2761.0,2760.9,0.1303289]
[1724558925053,13.3667011,2761.0,2760.9,0.1303289]
[1724558925366,15.7979011,2761.0,2760.9,0.1303289]
[1724558925695,18.79658645,2761.0,2760.9,0.1303289]
[1724558926393,17.28564548,2761.0,2760.9,0.1303289]
[1724558927099,18.79665433,2761.0,2760.9,0.1303289]
[1724558929062,17.28564548,2761.0,2760.9,0.1303289]
[1724558929513,18.79634123,2761.0,2760.9,0.1303289]
[1724558929794,12.74327123,2761.0,2760.9,0.1303289]
[1724558930358,16.36514123,2761.0,2760.9,0.1303289]
[1724558933401,14.85444548,2761.0,2760.9,0.1303289]
[1724558934023,16.36514123,2761.0,2760.9,0.1303289]
[1724558934524,18.79634123,2761.0,2760.9,0.1303289]
[1724558934698,18.41843974,2761.0,2760.9,0.1303289]
[1724558935229,15.98723974,2761.0,2760.9,0.1303289]
[1724558935420,12.36536974,2761.0,2760.9,0.1303289]
[1724558935588,15.98723974,2761.0,2760.9,0.1303289]
[1724558937624,14.85444548,2761.0,2760.9,0.1303289]
[1724558938126,15.98733546,2761.0,2760.9,0.1303289]
[1724558939315,14.85444548,2761.0,2760.9,0.1303289]
[1724558939627,7.9410041,2761.2,2760.9,0.1303289]
[1724558939628,1.13289816,2761.3,2761.0,2.3282]
[1724558939828,3.62143,2761.4,2761.0,2.3282]
[1724558940033,4.75405816,2761.6,2761.0,2.3282]
[1724558940323,3.62116,2761.6,2761.2,2.3282]
[1724558940524,3.62124,2761.5,2761.2,2.3282]
[1724558940728,7.24235,2761.6,2761.2,2.3282]
[1724558940924,7.24235,2761.6,2761.3,0.25740529]
[1724558941501,3.62116,2761.6,2761.3,0.25740529]
[1724558942210,7.24235,2761.6,2761.3,0.25740529]
[1724558942528,3.62116,2761.6,2761.3,0.25740529]
[1724558942994,3.62116,2761.6,2761.4,2.3282]
[1724558943189,3.62122,2761.5,2761.4,2.58676053]
[1724558943624,3.62122,2761.5,2761.4,2.3282]
[1724558945434,3.62116,2761.6,2761.4,2.3282]
[1724558945959,1.13289816,2761.7,2761.4,2.3282]
[1724558946253,4.75374816,2761.8,2761.4,2.3282]
[1724558946531,3.62104,2761.7,2761.4,2.56102]
[1724558946894,1.13289816,2761.8,2761.4,2.56102]
[1724558947232,1.13289816,2761.9,2761.4,2.56102]
[1724558947745,3.6207,2761.9,2761.6,2.3282]
[1724558947955,3.62071,2761.9,2761.6,2.3282]
[1724558948159,1.13289816,2762.0,2761.6,2.3282]
[1724558948335,3.6207,2761.9,2761.6,2.3282]
[1724558951011,7.24149,2761.9,2761.6,2.3282]
[1724558951206,3.6207,2761.9,2761.6,2.3282]
[1724558951409,3.6207,2761.9,2761.6,2.584302]
[1724558951931,3.6209,2761.8,2761.6,2.584302]
[1724558952739,4.75339816,2762.1,2761.6,2.584302]
[1724558952951,8.37392816,2762.1,2761.6,2.584302]
[1724558953109,3.62057,2762.0,2761.6,2.584302]
[1724558953311,3.62057,2762.0,2761.7,0.2584302]
[1724558954350,3.62057,2762.0,2761.6,2.3282]
[1724558955815,3.62069,2761.9,2761.6,2.3282]
[1724558956640,3.62084,2761.8,2761.6,2.3282]
[1724558956839,3.62068,2762.0,2761.6,2.3282]
[1724558957026,3.6205,2762.1,2761.6,2.56102]
[1724558957561,7.24106,2762.1,2761.6,2.56102]
[1724558957716,3.6205,2762.1,2761.6,2.56102]
[1724558959749,3.62023,2762.3,2761.6,2.56102]
[1724558959935,3.62023,2762.3,2761.7,2.2767]
[1724558960136,1.51069575,2762.7,2761.6,3.85388]
[1724558960137,4.75254816,2762.7,2761.9,2.2767]
[1724558960375,6.61945,2762.9,2762.2,2.2767]
[1724558960376,4.75234816,2762.9,2762.2,2.2767]
[1724558960954,3.62,2762.5,2762.2,2.2767]
[1724558961368,3.6199,2762.6,2762.2,2.2767]
[1724558961653,3.61956,2762.8,2762.2,2.2767]
[1724558961818,3.61956,2762.8,2762.4,2.2767]
[1724558962018,7.23917,2762.8,2762.4,2.2767]
[1724558962578,5.31635161,2763.6,2762.4,2.2767]
[1724558962579,3.61924,2763.1,2762.5,2.2767]
[1724558962866,3.61922,2763.1,2762.7,2.2767]
[1724558963029,3.61922,2763.1,2762.7,2.55937]
[1724558963355,3.61933,2763.0,2762.7,2.55937]
[1724558963540,1.13289816,2763.5,2762.7,2.2767]
[1724558963725,3.61951,2762.8,2762.7,2.2767]
[1724558967117,4.13289816,2763.5,2762.7,2.2767]
[1724558967118,1.13289816,2763.5,2762.7,2.2767]
[1724558967321,3.61852,2763.6,2762.9,2.2767]
[1724558967645,7.23687,2763.7,2762.9,2.2767]
[1724558967860,3.61847,2763.6,2762.9,2.2767]
[1724558968208,3.61812,2763.9,2763.1,5.8957]
[1724558968401,3.61812,2763.9,2763.2,1.13957]
[1724558970095,3.61848,2763.6,2763.2,0.58957]
[1724558970275,3.61848,2763.6,2763.1,2.2767]
[1724558970572,3.61824,2763.8,2763.1,2.2767]
[1724558970786,3.61824,2763.8,2762.7,10.95961]
[1724558970787,3.61771,2764.2,2763.4,3.61872]
[1724558970986,3.6173,2764.5,2763.4,2.2767]
[1724558971144,3.61755,2764.3,2763.6,2.2767]
[1724558971338,3.61755,2764.3,2763.8,2.2767]
[1724558972178,3.6173,2764.5,2763.8,2.2767]
[1724558972393,3.6173,2764.5,2763.8,2.34906075]
[1724558973158,3.6173,2764.5,2763.9,2.2767]
[1724558975570,5.327,2765.1,2763.9,2.2767]
[1724558975774,3.61764,2764.3,2764.0,0.22767]
[1724558978196,7.23471,2764.5,2764.0,0.22767]
[1724558978398,3.61743,2764.4,2764.0,0.22767]
[1724558978575,3.61722,2764.6,2764.0,0.22767]
[1724558978776,3.6173,2764.5,2764.0,0.22767]
[1724558979126,3.6173,2764.5,2764.1,0.250437]
[1724558979413,3.61735,2764.5,2764.1,0.250437]
[1724558979789,7.23476,2764.5,2764.1,0.250437]
[1724558980598,3.61743,2764.4,2764.1,0.250437]
[1724558982812,3.61743,2764.4,2763.9,2.2767]
[1724558982813,3.61763,2764.3,2763.9,2.2767]
[1724558983043,3.61773,2764.2,2763.9,2.2767]
[1724558986392,3.61773,2764.2,2763.7,7.34]
[1724558986663,3.61769,2764.2,2763.7,7.34]
[1724558986811,3.61746,2764.4,2763.7,7.34]
[1724558987014,7.23498,2764.4,2763.8,3.597133]
[1724558987235,3.61756,2764.3,2763.8,3.597133]
[1724558987822,3.61746,2764.4,2763.8,3.597133]
[1724558988230,3.61757,2764.3,2763.8,3.597133]
[1724558989510,3.6177,2764.2,2763.8,3.597133]
[1724558989819,3.6177,2764.2,2763.8,2.2739]
[1724558989820,7.23548,2764.2,2763.8,2.2739]
[1724558990469,3.6177,2764.2,2763.8,2.2739]
[1724558990675,3.61782,2764.1,2763.8,2.2739]
[1724558991506,3.61807,2763.9,2763.8,2.2739]
[1724558992696,3.61807,2763.9,2763.5,2.2739]
[1724558992868,3.61807,2763.9,2763.5,3.23529]
[1724558996192,7.23576,2764.1,2763.5,3.23529]
[1724558998083,3.61785,2764.1,2763.5,3.23529]
[1724558998288,3.61785,2764.1,2763.6,2.3534]
[1724558998689,7.23575,2764.1,2763.6,2.3534]
[1724558998927,3.61785,2764.1,2763.6,2.3534]
[1724558999807,3.61785,2764.1,2763.6,3.780751]
[1724559002156,3.61736,2764.5,2763.8,2.3534]
[1724559002742,3.61755,2764.3,2763.8,2.3534]
[1724559003101,7.23519,2764.3,2763.8,2.3534]
[1724559003301,3.61755,2764.3,2763.8,2.3534]
[1724559003502,7.23518,2764.3,2763.8,3.0933061]
[1724559004129,3.61771,2764.2,2763.8,3.0933061]
[1724559009524,4.75060816,2764.2,2763.8,3.0933061]
[1724559010025,3.61802,2764.0,2763.8,2.3534]
[1724559011347,3.61785,2764.1,2763.8,2.3534]
[1724559011547,4.75074816,2764.1,2763.8,2.3534]
[1724559012349,1.13289816,2764.0,2763.8,2.3534]
[1724559012566,1.13289816,2763.9,2763.8,2.3534]
[1724559013064,4.75085816,2764.0,2763.8,2.3534]
[1724559013442,1.13289816,2763.9,2763.8,2.3534]
[1724559014451,5.12865575,2764.0,2763.8,2.3534]
[1724559014966,1.13881445,2763.9,2763.8,2.3534]
[1724559015124,5.12865575,2764.0,2763.8,2.3534]
[1724559015825,1.51069575,2763.9,2763.8,2.3534]
[1724559017760,1.51069575,2763.9,2763.8,2.85828939]
[1724559017961,1.8980142,2764.1,2763.9,5.97117]
[1724559017962,1.51069575,2764.0,2763.9,5.97117]
[1724559018160,1.13985217,2764.1,2764.0,3.62124292]
[1724559018365,1.13985217,2764.2,2764.1,2.3531]
[1724559018541,1.51069575,2764.3,2764.1,2.3531]
[1724559018737,1.51069575,2764.3,2764.2,1.26814292]
[1724559019163,1.13957732,2764.3,2764.2,1.26814292]
[1724559019759,1.51069575,2764.3,2764.2,1.26814292]
[1724559023154,1.51069575,2764.4,2764.2,3.62124292]
[1724559023360,1.13920801,2764.3,2764.2,3.62124292]
[1724559026289,1.51069575,2764.4,2764.2,3.62124292]
[1724559026851,1.51069575,2764.4,2764.2,2.3531]
[1724559028673,1.51069575,2764.4,2764.2,4.4073942]
[1724559031381,1.51069575,2764.4,2764.2,3.62124292]
[1724559036057,5.12798575,2764.5,2764.2,2.3531]
[1724559036263,1.13850431,2764.3,2764.2,2.3531]
[1724559037090,1.13850431,2764.4,2764.2,2.3531]
[1724559037801,1.13850431,2764.3,2764.2,2.3531]
[1724559039166,1.13850431,2764.3,2764.0,1.81814292]
[1724559039369,1.13850431,2764.3,2764.0,4.20544292]
[1724559040283,1.13850431,2764.2,2764.0,4.20544292]
[1724559040675,1.13850431,2764.3,2764.0,4.20544292]
[1724559043803,1.13850431,2764.2,2764.0,4.20544292]
[1724559043998,1.13850431,2764.3,2764.0,4.20544292]
[1724559045291,1.13850431,2764.2,2764.0,4.20544292]
[1724559046473,1.13850431,2764.2,2763.8,2.3873]
[1724559046677,4.75619431,2764.2,2763.8,2.3873]
[1724559046894,1.13850431,2764.2,2763.8,2.3873]
[1724559047094,1.13850431,2764.3,2764.1,2.3873]
[1724559047294,1.51069575,2764.4,2764.1,2.3873]
[1724559047295,1.13850431,2764.4,2764.1,2.3873]
[1724559048359,1.13850431,2764.4,2764.3,2.3873]
[1724559048556,1.51069575,2764.6,2764.3,2.3873]
[1724559048557,1.13850431,2764.5,2764.3,2.3873]
[1724559050106,1.13850431,2764.4,2764.3,2.3873]
[1724559054260,1.51069575,2764.5,2764.3,2.3873]
[1724559054811,1.51069575,2764.5,2763.7,9.00557]
[1724559054812,5.12820575,2764.4,2763.7,9.00557]
[1724559055119,4.75643976,2764.2,2763.7,5.3873]
[1724559055318,8.37420976,2764.2,2763.7,5.3873]
[1724559055542,4.75643976,2764.2,2763.7,5.3873]
[1724559055815,4.75643976,2764.2,2763.7,2.3873]
[1724559056126,4.75643976,2764.2,2763.6,1.26814292]
[1724559056127,1.13867976,2764.0,2763.6,1.26814292]
[1724559056440,1.13867976,2764.1,2763.6,1.26814292]
[1724559056906,1.13867976,2764.0,2763.6,1.26814292]
[1724559057645,1.13867976,2764.1,2763.6,1.26814292]
[1724559057947,1.13867976,2764.1,2763.6,2.35738621]
[1724559058309,1.13867976,2764.0,2763.6,2.35738621]
[1724559059819,1.13867976,2763.9,2763.6,1.26814292]
[1724559062049,1.13867976,2763.8,2763.5,2.3873]
[1724559062349,1.13867976,2763.8,2763.4,1.26814292]
[1724559062650,1.13867976,2763.8,2763.5,1.22269229]
[1724559064009,1.13867976,2763.8,2763.4,1.26814292]
[1724559065728,1.13867976,2763.7,2763.4,1.26814292]
[1724559065925,1.13867976,2763.8,2763.4,1.26814292]
[1724559067142,1.13867976,2763.7,2763.4,1.26814292]
[1724559067542,1.13867976,2763.8,2763.4,1.26814292]
[1724559068313,1.13867976,2763.7,2763.4,1.26814292]
[1724559068514,1.13867976,2763.8,2763.4,1.26814292]
[1724559069151,3.61852,2763.6,2763.3,7.34]
[1724559069518,4.75719976,2763.6,2763.3,7.34]
[1724559069718,1.13867976,2763.6,2763.3,7.34]
[1724559069929,4.75735976,2763.5,2763.3,7.34]
[1724559070135,3.61868,2763.5,2763.3,7.34]
[1724559073222,4.60731955,2763.5,2762.9,9.5941]
[1724559073422,1.26814292,2763.2,2762.9,7.34]
[1724559073624,3.61916,2763.1,2762.6,12.45]
[1724559077467,3.61916,2763.1,2762.5,14.48213292]
[1724559077651,3.61916,2763.1,2762.6,2.36020729]
[1724559078463,3.61916,2763.1,2762.6,0.55]
[1724559082322,5.96557,2763.3,2762.6,4.16976]
[1724559082728,3.619,2763.2,2762.6,4.16976]
[1724559083158,3.619,2763.2,2762.6,0.55]
[1724559084189,3.61914,2763.1,2762.6,0.55]
[1724559085058,3.70984292,2763.0,2762.5,7.34]
[1724559085408,3.61966,2762.7,2762.2,7.34]
[1724559085686,3.61947,2762.9,2762.3,1.81814292]
[1724559087361,2.4417,2763.0,2762.5,1.26814292]
[1724559087564,6.06037,2763.5,2762.9,1.26814292]
[1724559087859,3.61867,2763.5,2763.0,0.55]
[1724559089353,3.61867,2763.5,2763.0,1.209849]
[1724559091386,7.23735,2763.5,2763.0,1.209849]
[1724559091574,3.61867,2763.5,2763.0,1.209849]
[1724559092280,3.61874,2763.4,2763.0,1.209849]
[1724559092485,3.61874,2763.4,2763.0,0.55]
[1724559092656,3.61874,2763.4,2762.9,0.55]
[1724559093201,3.61888,2763.3,2762.9,0.55]
[1724559094659,6.06058,2763.3,2762.9,0.55]
[1724559095196,6.06058,2763.3,2762.8,2.4292]
[1724559095353,3.61916,2763.1,2762.7,7.34]
[1724559095557,3.61916,2763.1,2762.7,8.678904]
[1724559096758,9.67958,2763.3,2762.7,8.678904]
[1724559096960,3.61906,2763.2,2762.7,8.678904]
[1724559097356,3.61913,2763.1,2762.7,7.34]
[1724559098303,3.61913,2763.1,2762.4,25.83916]
[1724559098593,3.61926,2763.0,2762.5,0.55]
[1724559099479,3.61913,2763.1,2762.5,0.55]
[1724559101204,3.61925,2763.0,2762.5,0.55]
[1724559106937,3.61946,2762.9,2762.5,0.55]
[1724559107631,3.61926,2763.0,2762.5,1.943936]
[1724559107847,1.13867976,2763.3,2762.6,6.1128596]
[1724559108051,1.13867976,2763.3,2762.9,2.296]
[1724559108399,4.75751976,2763.4,2762.9,3.56481556]
[1724559108649,1.13867976,2763.3,2762.9,3.56481556]
[1724559109502,4.75753976,2763.3,2762.9,3.56481556]
[1724559111434,3.61886,2763.3,2763.1,1.26881556]
[1724559116219,4.75753976,2763.3,2763.1,1.26881556]
[1724559116949,3.61886,2763.3,2763.1,1.26881556]
[1724559117315,4.75753976,2763.3,2763.1,1.26881556]
[1724559117618,1.13867976,2763.4,2763.2,2.296]
[1724559117815,1.13867976,2763.4,2763.3,1.81881556]
[1724559118063,1.13867976,2763.5,2763.3,1.81881556]
[1724559118304,1.13867976,2763.8,2763.4,2.78998156]
[1724559118605,1.13867976,2763.8,2763.6,1.26881556]
[1724559118827,5.12866575,2764.0,2763.6,1.26881556]
[1724559118828,1.13867976,2763.9,2763.6,1.26881556]
[1724559119821,4.75675976,2763.9,2763.6,1.26881556]
[1724559119990,1.13867976,2763.8,2763.4,2.3785]
[1724559120153,5.12877575,2763.9,2763.4,2.3785]
[1724559120154,1.13867976,2763.7,2763.4,2.3785]
[1724559120604,4.75704976,2763.7,2763.4,2.3785]
[1724559120915,3.61867,2763.5,2763.2,7.34]
[1724559121057,4.75734976,2763.5,2763.2,7.34]
[1724559122217,3.61867,2763.5,2763.2,8.60881556]
[1724559122431,1.13867976,2763.6,2763.2,8.60881556]
[1724559122719,4.75714976,2763.6,2763.2,7.34]
[1724559122875,1.13867976,2763.5,2763.2,7.34]
[1724559124279,4.75730976,2763.5,2763.2,7.34]
[1724559124979,4.75730976,2763.5,2762.8,13.33801]
[1724559125200,4.75730976,2763.5,2762.9,2.245758]
[1724559126150,2.3893,2763.4,2762.9,2.245758]
[1724559127187,2.3893,2763.4,2762.9,0.55]
[1724559127387,3.61895,2763.3,2762.9,0.55]
[1724559128629,4.75762976,2763.3,2762.9,0.55]
[1724559129243,8.37660976,2763.3,2762.9,0.55]
[1724559129568,4.75766976,2763.2,2762.9,0.55]
[1724559130278,3.61915,2763.1,2762.6,21.88791862]
[1724559130480,3.61941,2762.9,2762.6,19.42911862]
[1724559130783,3.61941,2762.9,2762.4,2.4588]
[1724559130784,4.75808976,2762.9,2762.4,2.4588]
[1724559130969,3.61968,2762.7,2762.2,9.7988]
[1724559131144,7.04335976,2762.7,2762.2,7.34]
[1724559131457,3.61998,2762.5,2762.2,7.34]
[1724559133763,3.61998,2762.5,2762.2,7.34]
[1724559136314,7.23999,2762.5,2762.2,7.34]
[1724559136515,3.61998,2762.5,2762.2,7.34]
[1724559136821,3.61998,2762.5,2762.0,14.9088]
[1724559136822,3.61998,2762.5,2762.0,2.4588]
[1724559138567,4.68631698,2762.5,2761.8,13.43703]
[1724559138710,3.62025,2762.3,2761.8,7.34]
[1724559138917,2.3032,2762.2,2761.6,2.4763]
[1724559139231,3.62047,2762.1,2761.7,0.55]
[1724559140617,7.24052,2762.3,2761.7,0.55]
[1724559141412,3.62025,2762.3,2761.7,0.55]
[1724559141593,7.24052,2762.3,2761.7,0.55]
[1724559142501,3.62034,2762.2,2761.7,0.55]
[1724559145103,3.62025,2762.3,2761.7,0.55]
[1724559145305,3.62,2762.5,2761.8,6.09702]
[1724559145508,3.62,2762.5,2761.9,0.55]
[1724559145667,3.62,2762.5,2761.9,4.17069]
[1724559145868,3.61986,2762.6,2762.1,2.4763]
[1724559146323,3.61995,2762.5,2762.1,2.4763]
[1724559151927,4.212166,2762.6,2762.1,2.4763]
[1724559152242,3.62004,2762.4,2762.1,2.4763]
[1724559152438,7.23973,2762.6,2762.1,2.4763]
[1724559152574,8.17328916,2762.6,2762.1,2.4763]
[1724559153078,3.61991,2762.5,2762.1,2.4763]
[1724559155672,3.62004,2762.4,2762.1,2.4763]
[1724559158504,7.24016,2762.4,2761.9,3.0158]
[1724559158711,3.62019,2762.3,2761.9,0.55]
[1724559159395,3.62038,2762.2,2761.7,2.4658]
[1724559159580,3.62038,2762.2,2761.8,1.26966296]
[1724559160215,7.24079,2762.2,2761.8,1.26966296]
[1724559160430,3.62051,2762.1,2761.8,1.26966296]
[1724559160625,3.62051,2762.1,2761.5,10.96113]
[1724559160626,3.62051,2762.1,2761.6,1.26966296]
[1724559162649,3.62051,2762.1,2761.8,1.26966296]
[1724559163837,3.62064,2762.0,2761.6,1.26966296]
[1724559164735,3.62073,2761.9,2761.6,1.26966296]
[1724559164935,3.62051,2762.1,2761.6,1.26966296]
[1724559165657,7.24103,2762.1,2761.6,1.26966296]
[1724559166048,3.62051,2762.1,2761.6,1.26966296]
[1724559166931,7.24104,2762.1,2761.6,1.26966296]
[1724559168031,3.62059,2762.0,2761.6,1.26966296]
[1724559168855,3.62071,2761.9,2761.6,1.26966296]
[1724559169159,3.62071,2761.9,2761.4,19.42911862]
[1724559169453,3.62071,2761.9,2761.5,1.81966296]
[1724559174068,7.24105,2762.1,2761.6,2.4658]
[1724559174364,3.62058,2762.0,2761.6,2.4658]
[1724559175334,3.62058,2762.0,2761.7,1.26966296]
[1724559179471,1.13867976,2762.1,2761.7,1.26966296]
[1724559179671,1.13867976,2762.1,2762.0,2.294]
[1724559179880,1.13867976,2762.2,2762.0,2.294]
[1724559180545,4.75898976,2762.2,2762.0,2.294]
[1724559180869,1.13867976,2762.1,2762.0,2.294]
[1724559182788,4.75910976,2762.1,2762.0,2.294]
[1724559182949,1.13867976,2762.1,2762.0,2.294]
[1724559183792,1.13867976,2762.2,2762.0,2.294]
[1724559184161,3.62043,2762.1,2762.0,2.294]
[1724559184370,3.62043,2762.1,2761.8,2.294]
[1724559184551,4.75910976,2762.1,2761.9,0.55]
[1724559185189,4.75910976,2762.1,2761.8,0.55]
[1724559185849,1.13867976,2762.0,2761.8,0.55]
[1724559186129,4.75910976,2762.1,2761.8,0.55]
[1724559186653,8.37963976,2762.1,2761.8,0.55]
[1724559187081,4.75910976,2762.1,2761.8,0.55]
[1724559188168,8.37963976,2762.1,2761.8,0.55]
[1724559188901,3.62082,2761.8,2761.6,2.294]
[1724559189894,3.62102,2761.7,2761.5,8.60966296]
[1724559190186,3.62108,2761.6,2761.5,8.60966296]
[1724559190892,7.24176,2761.8,2761.5,8.60966296]
[1724559191597,3.62082,2761.8,2761.5,8.60966296]
[1724559193103,3.62082,2761.8,2761.5,7.34]
[1724559193277,3.62082,2761.8,2761.4,3.56366296]
[1724559196859,4.75949976,2761.8,2761.4,3.56366296]
[1724559197903,4.75949976,2761.8,2761.4,2.294]
[1724559198265,8.38041976,2761.8,2761.4,2.294]
[1724559198459,8.38041976,2761.8,2761.2,3.59576296]
[1724559198460,6.17086615,2761.8,2761.2,3.59576296]
[1724559198710,4.75949976,2761.8,2761.2,3.59576296]
[1724559198912,3.62097,2761.7,2761.2,3.59576296]
[1724559199319,4.75964976,2761.7,2761.2,3.59576296]
[1724559199959,4.75949976,2761.8,2761.2,7.21735296]
[1724559200193,4.75949976,2761.8,2761.4,1.26966296]
[1724559201325,1.13867976,2761.8,2761.6,1.26966296]
[1724559201466,1.51069575,2761.9,2761.6,1.26966296]
[1724559201467,1.13867976,2761.9,2761.6,1.26966296]
[1724559201967,1.13867976,2762.0,2761.8,3.59576296]
[1724559202170,1.13867976,2762.2,2761.9,3.62061]
[1724559202491,1.13867976,2762.3,2762.0,1.81966296]
[1724559202801,1.51069575,2762.5,2762.0,1.81966296]
[1724559202802,1.13867976,2762.4,2762.0,1.81966296]
[1724559206299,4.75873976,2762.4,2762.0,1.81966296]
[1724559208756,1.13867976,2762.4,2762.1,0.07240385]
[1724559208902,1.13867976,2762.6,2762.4,2.3261]
[1724559209075,1.13867976,2762.7,2762.4,3.59576296]
[1724559209273,1.13867976,2762.7,2762.4,2.3261]
[1724559209509,4.75839976,2762.7,2762.2,3.59576296]
[1724559209809,4.75839976,2762.7,2762.3,0.55]
[1724559210470,3.61978,2762.6,2762.3,0.55]
[1724559211104,1.13867976,2762.7,2762.2,1.26966296]
[1724559211306,3.61987,2762.6,2762.3,0.55]
[1724559211530,4.75822976,2762.8,2762.4,2.5080663]
[1724559211695,4.75822976,2762.8,2762.4,2.3261]
[1724559212669,8.37784976,2762.8,2762.4,2.3261]
[1724559213190,4.75822976,2762.8,2762.4,2.3261]
[1724559214480,3.61955,2762.8,2762.4,2.3261]
[1724559215205,4.75822976,2762.8,2762.4,2.3261]
[1724559215724,3.61955,2762.8,2762.4,2.3261]
[1724559216277,7.23915,2762.8,2762.4,2.3261]
[1724559216574,3.61981,2762.6,2762.2,3.59576296]
[1724559217034,4.75822976,2762.8,2762.2,3.59576296]
[1724559217175,3.61955,2762.8,2762.2,3.59576296]
[1724559217509,7.23917,2762.8,2762.2,3.59576296]
[1724559217711,3.61955,2762.8,2762.2,3.59576296]
[1724559219316,3.61955,2762.8,2762.2,7.21603296]
[1724559220016,7.23915,2762.8,2762.2,7.21603296]
[1724559220236,8.22849061,2762.8,2762.2,7.21603296]
[1724559220732,4.60889061,2762.8,2762.2,7.21603296]
[1724559224542,1.14356038,2762.9,2762.4,3.61995]
[1724559227735,0.00488062,2762.9,2762.4,3.61995]
[1724559229930,3.62430062,2762.9,2762.4,3.61995]
[1724559231431,3.62430062,2762.9,2762.2,10.83617296]
[1724559231636,3.62430062,2762.9,2762.3,4.17017]
[1724559231932,3.61987,2762.6,2762.2,2.3261]
[1724559232229,7.23974,2762.6,2762.2,2.3261]
[1724559232631,3.61987,2762.6,2762.2,2.3261]
[1724559233135,3.61987,2762.6,2762.3,0.56632306]
[1724559233333,6.04609,2762.8,2762.3,0.56632306]